[Event "49th Rilton Cup 2019-20"]
[Site "Stockholm"]
[Date "2019.12.29"]
[Round "3.11"]
[White "Spyropoulos, Nikolaos"]
[Black "Ionov, Sergey"]
[Result "0-1"]
[ECO "C11"]
[WhiteElo "2401"]
[BlackElo "2521"]
[Annotator "ChessBase"]
[PlyCount "118"]
[EventDate "2019.12.27"]
[EventType "swiss"]
[EventCountry "SWE"]
[SourceTitle "playchess.com"]
[Source "ChessBase"]
[SourceQuality "1"]
[TimeControl "40/5400+30:1800+30"]

1. e4 {[%emt 0:00:00]} e6 {[%emt 0:00:32]} 2. d4 {[%emt 0:00:00]} d5 {[%emt 0:00:07]} 3. Nc3 {[%emt 0:00:00]} Nf6 {[%emt 0:00:23]} 4. Bg5 {[%emt 0:00:00]} dxe4 {[%emt 0:00:21]} 5. Nxe4 {[%emt 0:00:03]} Nbd7 {[%emt 0:00:08]} 6. Nxf6+ {[%emt 0:01:22]} Nxf6 {[%emt 0:01:08]} 7. Nf3 {[%emt 0:00:09]} h6 {[%emt 0:01:50]} 8. Bh4 {[%emt 0:00:28]} c5 {[%emt 0:01:53]} 9. Bd3 {[%emt 0:02:45]} cxd4 {[%emt 0:09:15]} 10. Nxd4 {[%emt 0:02:08]} Be7 {[%emt 0:14:48]} 11. O-O {[%emt 0:05:50]} O-O {[%emt 0:00:23]} 12. c3 {[%emt 0:01:44]} Nd5 {[%emt 0:07:21]} 13. Bg3 {[%emt 0:20:19]} Bf6 {[%emt 0:07:38]} 14. Qe2 {[%emt 0:07:39]} Bxd4 {[%emt 0:06:09]} 15. cxd4 {[%emt 0:00:07]} Bd7 {[%emt 0:02:29]} 16. a3 {[%emt 0:15:34]} Bc6 {[%emt 0:04:29]} 17. Rac1 {[%emt 0:00:31]} Qd7 {[%emt 0:05:32]} 18. Be5 {[%emt 0:08:55]} a6 {[%emt 0:08:31]} 19. h3 {[%emt 0:11:57]} Rac8 {[%emt 0:09:41]} 20. Rc5 {[%emt 0:01:02]} f6 {[%emt 0:05:00]} 21. Bg3 {[%emt 0:09:30]} Ne7 {[%emt 0:00:52]} 22. Re1 {[%emt 0:07:18]} Bd5 {[%emt 0:01:06]} 23. Be4 Bxe4 {[%emt 0:02:37]} 24. Qxe4 {[%emt 0:03:44]} Kf7 {[%emt 0:00:07]} 25. Qg4 {[%emt 0:00:47]} Nd5 {[%emt 0:02:02]} 26. Qh5+ {[%emt 0:00:28]} Kg8 {[%emt 0:00:23]} 27. b4 {[%emt 0:00:33]} b6 {[%emt 0:02:04]} 28. Rxc8 {[%emt 0:00:05]} Qxc8 {[%emt 0:01:08]} 29. Qe2 {[%emt 0:00:37]} Re8 {[%emt 0:00:29]} 30. Qg4 {[%emt 0:00:46]} Qc6 {[%emt 0:03:09]} 31. Bf4 {[%emt 0:00:26]} Kh7 {[%emt 0:00:25]} 32. Rc1 {[%emt 0:00:30]} Qd7 {[%emt 0:02:19]} 33. Bd2 {[%emt 0:00:32]} Rc8 {[%emt 0:00:50]} 34. Re1 {[%emt 0:00:36]} Rc6 {[%emt 0:00:07]} 35. h4 {[%emt 0:00:25]} b5 {[%emt 0:00:52]} 36. h5 {[%emt 0:00:26]} Qf7 {[%emt 0:00:08]} 37. Bf4 {[%emt 0:00:38]} f5 {[%emt 0:01:11]} 38. Qh4 {[%emt 0:00:07]} Qf6 {[%emt 0:00:30]} 39. Qg3 {[%emt 0:00:11]} Rc3 {[%emt 0:00:29]} 40. Qh2 {[%emt 0:00:39]} Rxa3 {[%emt 0:00:33]} 41. Bc1 {[%emt 0:07:39]} Ra1 {[%emt 0:15:36]} 42. Qg3 {[%emt 0:13:40]} Nxb4 {[%emt 0:06:23]} 43. Qc3 {[%emt 0:10:27]} Rb1 {[%emt 0:01:51]} 44. Bd2 {[%emt 0:00:12]} Nd5 {[%emt 0:02:40]} 45. Qc6 {[%emt 0:00:13]} Rxe1+ {[%emt 0:00:38]} 46. Bxe1 {[%emt 0:00:04]} Nf4 {[%emt 0:01:59]} 47. Qxa6 {[%emt 0:00:42]} Qxd4 {[%emt 0:01:34]} 48. g3 {[%emt 0:01:35]} Nh3+ {[%emt 0:02:29]} 49. Kh2 {[%emt 0:00:29]} Ng5 {[%emt 0:00:07]} 50. Qa5 {[%emt 0:00:35]} Qe4 {[%emt 0:00:43]} 51. Bc3 {[%emt 0:00:15]} Qe2 {[%emt 0:00:22]} 52. Qa7 {[%emt 0:00:35]} Qxh5+ {[%emt 0:00:13]} 53. Kg1 {[%emt 0:00:07]} Qf7 {[%emt 0:00:13]} 54. Qb6 {[%emt 0:00:46]} Qd7 {[%emt 0:00:10]} 55. Qe3 {[%emt 0:00:21]} Qc6 {[%emt 0:00:38]} 56. Bb2 {[%emt 0:00:31]} Qc2 {[%emt 0:01:04]} 57. Ba3 {[%emt 0:00:54]} b4 {[%emt 0:00:15]} 58. Bxb4 {[%emt 0:00:13]} Qb1+ {[%emt 0:00:04]} 59. Be1 {[%emt 0:00:04]} Qxe1+ 0-1

[Event "49th Rilton Cup 2019-20"]
[Site "Stockholm"]
[Date "2019.12.29"]
[Round "3.12"]
[White "Miezis, Normunds"]
[Black "Moehn, Hans"]
[Result "1-0"]
[ECO "B10"]
[WhiteElo "2486"]
[BlackElo "2373"]
[Annotator "ChessBase"]
[PlyCount "104"]
[EventDate "2019.12.27"]
[EventType "swiss"]
[EventCountry "SWE"]
[SourceTitle "playchess.com"]
[Source "ChessBase"]
[SourceQuality "1"]
[TimeControl "40/5400+30:1800+30"]

1. c4 {[%emt 0:00:00]} c6 {[%emt 0:00:00]} 2. e4 {[%emt 0:00:46]} d5 {[%emt 0:00:00]} 3. cxd5 {[%emt 0:00:19]} cxd5 {[%emt 0:00:00]} 4. exd5 {[%emt 0:00:09]} Nf6 {[%emt 0:00:00]} 5. Nc3 {[%emt 0:02:15]} Nxd5 {[%emt 0:00:05]} 6. Nf3 {[%emt 0:00:15]} Nxc3 {[%emt 0:00:07]} 7. bxc3 {[%emt 0:01:21]} g6 {[%emt 0:00:07]} 8. Qa4+ {[%emt 0:02:39]} Nc6 {[%emt 0:08:47]} 9. Qh4 {[%emt 0:19:01]} Bf5 {[%emt 0:15:26]} 10. d4 {[%emt 0:04:58]} e5 {[%emt 0:08:36]} 11. Bb5 {[%emt 0:19:25]} Qxh4 {[%emt 0:03:54]} 12. Nxh4 {[%emt 0:01:00]} Bd7 {[%emt 0:14:14]} 13. O-O {[%emt 0:04:54]} exd4 {[%emt 0:03:08]} 14. cxd4 {[%emt 0:02:53]} O-O-O {[%emt 0:07:07]} 15. Be3 {[%emt 0:06:36]} Be6 {[%emt 0:06:42]} 16. Nf3 {[%emt 0:02:08]} f6 {[%emt 0:05:46]} 17. Rfc1 {[%emt 0:02:33]} Bd5 {[%emt 0:00:21]} 18. Rab1 {[%emt 0:00:42]} Bd6 {[%emt 0:04:57]} 19. Nd2 {[%emt 0:04:21]} Rd7 {[%emt 0:04:28]} 20. a4 {[%emt 0:01:26]} Rc7 {[%emt 0:03:31]} 21. Nc4 {[%emt 0:02:47]} Bxc4 {[%emt 0:00:10]} 22. Bxc4 {[%emt 0:01:21]} Kb8 {[%emt 0:01:02]} 23. Kf1 {[%emt 0:03:33]} Rd8 {[%emt 0:03:43]} 24. Bd5 {[%emt 0:03:36]} Rdc8 {[%emt 0:02:03]} 25. Be6 {[%emt 0:02:19]} Rd8 {[%emt 0:00:27]} 26. d5 {[%emt 0:01:31]} Ne7 {[%emt 0:02:06]} 27. g3 {[%emt 0:01:40]} Nf5 {[%emt 0:01:33]} 28. Bxf5 {[%emt 0:04:20]} gxf5 {[%emt 0:00:05]} 29. Ke2 {[%emt 0:01:57]} Re7 {[%emt 0:02:59]} 30. Rc4 {[%emt 0:02:04]} Bc7 {[%emt 0:00:22]} 31. Rd1 {[%emt 0:00:51]} Red7 {[%emt 0:00:32]} 32. Kf3 {[%emt 0:00:56]} Be5 {[%emt 0:00:39]} 33. Rh4 {[%emt 0:00:10]} b6 {[%emt 0:01:28]} 34. Rh5 {[%emt 0:00:28]} Kb7 {[%emt 0:00:44]} 35. h4 {[%emt 0:00:22]} Ka6 {[%emt 0:00:32]} 36. Rc1 {[%emt 0:00:48]} Re8 {[%emt 0:01:36]} 37. Rxf5 {[%emt 0:01:00]} Rxd5 {[%emt 0:00:05]} 38. Rc7 {[%emt 0:00:26]} Ra5 {[%emt 0:01:00]} 39. Rxh7 {[%emt 0:00:15]} Rxa4 {[%emt 0:00:02]} 40. h5 {[%emt 0:00:32]} Ra8 {[%emt 0:01:02]} 41. h6 {[%emt 0:30:24]} Rc4 {[%emt 0:01:20]} 42. g4 {[%emt 0:00:00]} b5 {[%emt 0:07:03]} 43. g5 {[%emt 0:00:00]} b4 {[%emt 0:01:27]} 44. gxf6 {[%emt 0:00:00]} Bc7 {[%emt 0:12:15]} 45. Rc5 {[%emt 0:00:00]} Rxc5 {[%emt 0:00:54]} 46. Bxc5 {[%emt 0:00:00]} Be5 {[%emt 0:00:38]} 47. Bxb4 {[%emt 0:00:00]} Bxf6 {[%emt 0:02:12]} 48. Bc5 {[%emt 0:00:00]} Bg5 {[%emt 0:03:29]} 49. Kg4 {[%emt 0:00:00]} Kb5 {[%emt 0:01:01]} 50. Kxg5 {[%emt 0:00:00]} Kxc5 {[%emt 0:00:05]} 51. Rg7 {[%emt 0:00:00]} a5 {[%emt 0:00:07]} 52. h7 {[%emt 0:00:00]} Kd5 1-0

[Event "49th Rilton Cup 2019-20"]
[Site "Stockholm"]
[Date "2019.12.29"]
[Round "3.14"]
[White "Pavlovic, Milos"]
[Black "Mikalsen, Erlend"]
[Result "0-1"]
[ECO "A20"]
[WhiteElo "2480"]
[BlackElo "2361"]
[Annotator "ChessBase"]
[PlyCount "61"]
[EventDate "2019.12.27"]
[EventType "swiss"]
[EventCountry "SWE"]
[SourceTitle "playchess.com"]
[Source "ChessBase"]
[SourceQuality "1"]
[TimeControl "40/5400+30:1800+30"]

1. c4 {[%emt 0:00:00]} e5 {[%emt 0:00:00]} 2. d3 {[%emt 0:01:00]} Nf6 {[%emt 0:00:00]} 3. Nf3 {[%emt 0:02:07]} Nc6 {[%emt 0:00:00]} 4. g3 {[%emt 0:00:29]} d5 {[%emt 0:02:47]} 5. cxd5 {[%emt 0:00:05]} Nxd5 {[%emt 0:00:14]} 6. Bg2 {[%emt 0:00:05]} Bc5 {[%emt 0:10:33]} 7. O-O {[%emt 0:00:33]} O-O {[%emt 0:01:04]} 8. Qc2 {[%emt 0:31:20]} Bb6 {[%emt 0:01:07]} 9. Nc3 {[%emt 0:00:11]} Bg4 10. Bg5 Nde7 {[%emt 0:26:37]} 11. Qa4 {[%emt 0:39:40]} Bd7 {[%emt 0:07:15]} 12. Rfc1 {[%emt 0:04:43]} h6 {[%emt 0:02:17]} 13. Bxe7 {[%emt 0:04:32]} Qxe7 {[%emt 0:01:03]} 14. Qh4 {[%emt 0:00:08]} Qe6 {[%emt 0:03:12]} 15. e3 {[%emt 0:05:36]} Ne7 {[%emt 0:05:01]} 16. Qh5 {[%emt 0:01:59]} Bc6 {[%emt 0:05:32]} 17. Ne4 {[%emt 0:02:35]} f5 {[%emt 0:00:54]} 18. Nc5 {[%emt 0:00:30]} Qd6 {[%emt 0:02:31]} 19. d4 {[%emt 0:00:10]} exd4 {[%emt 0:00:36]} 20. exd4 {[%emt 0:00:22]} f4 {[%emt 0:05:30]} 21. g4 {[%emt 0:03:04]} Bxf3 {[%emt 0:01:57]} 22. Bxf3 {[%emt 0:00:01]} Qxd4 {[%emt 0:00:10]} 23. Ne4 {[%emt 0:01:38]} Nc6 {[%emt 0:03:31]} 24. Rd1 {[%emt 0:00:41]} Qxb2 {[%emt 0:00:25]} 25. g5 {[%emt 0:00:20]} Qe5 {[%emt 0:08:24]} 26. Rac1 {[%emt 0:00:24]} Rad8 {[%emt 0:04:36]} 27. Rxd8 {[%emt 0:00:36]} Nxd8 {[%emt 0:00:16]} 28. Rd1 {[%emt 0:00:18]} c6 {[%emt 0:05:05]} 29. h4 {[%emt 0:00:35]} Ne6 {[%emt 0:01:02]} 30. Rd7 {[%emt 0:00:29]} Nc5 {[%emt 0:00:30]} 31. Nxc5 {[%emt 0:00:00]} 0-1

[Event "49th Rilton Cup 2019-20"]
[Site "Stockholm"]
[Date "2019.12.29"]
[Round "3.16"]
[White "Keinanen, Toivo"]
[Black "Hobber, Anders"]
[Result "1/2-1/2"]
[ECO "D10"]
[WhiteElo "2447"]
[BlackElo "2357"]
[Annotator "NA"]
[PlyCount "61"]
[EventDate "2019.12.27"]
[EventType "swiss"]
[EventCountry "SWE"]
[SourceTitle "playchess.com"]
[Source "ChessBase"]
[SourceQuality "1"]
[TimeControl "40/5400+30:1800+30"]

1. d4 {[%emt 0:00:00]} d5 {[%emt 0:00:04]} 2. c4 {[%emt 0:00:00]} c6 {[%emt 0:00:09]} 3. cxd5 {[%emt 0:00:00]} cxd5 {[%emt 0:00:07]} 4. Bg5 {[%emt 0:00:00]} h6 {[%emt 0:07:50]} 5. Bh4 {[%emt 0:00:30]} Qb6 {[%emt 0:02:27]} 6. Nc3 {[%emt 0:00:03]} e6 {[%emt 0:02:40]} 7. Qd2 {[%emt 0:00:15]} Be7 {[%emt 0:06:02]} 8. Bxe7 {[%emt 0:00:35]} Nxe7 {[%emt 0:00:09]} 9. e3 {[%emt 0:00:04]} O-O {[%emt 0:01:50]} 10. Bd3 {[%emt 0:01:34]} Nbc6 {[%emt 0:02:15]} 11. f4 {[%emt 0:00:41]} f6 {[%emt 0:07:26]} 12. Nf3 {[%emt 0:15:18]} e5 {[%emt 0:02:12]} 13. fxe5 {[%emt 0:15:27]} fxe5 {[%emt 0:00:57]} 14. Nxe5 {[%emt 0:00:36]} Nxe5 {[%emt 0:01:17]} 15. dxe5 {[%emt 0:00:02]} Be6 {[%emt 0:09:31]} 16. O-O-O {[%emt 0:01:43]} Nc6 {[%emt 0:03:03]} 17. Bc2 {[%emt 0:08:56]} Rad8 {[%emt 0:14:33]} 18. Bb3 {[%emt 0:25:27]} Kh8 {[%emt 0:08:13]} 19. Rhf1 {[%emt 0:07:12]} Rxf1 {[%emt 0:03:01]} 20. Rxf1 {[%emt 0:00:49]} d4 {[%emt 0:18:06]} 21. Bxe6 {[%emt 0:04:43]} dxe3 {[%emt 0:00:01]} 22. Qc2 {[%emt 0:10:44]} Nd4 {[%emt 0:00:40]} 23. Qe4 {[%emt 0:00:15]} Nxe6 {[%emt 0:01:01]} 24. Rd1 {[%emt 0:00:30]} Rd2 {[%emt 0:03:32]} 25. Rxd2 {[%emt 0:01:40]} exd2+ {[%emt 0:00:01]} 26. Kxd2 {[%emt 0:01:00]} Qxb2+ {[%emt 0:00:12]} 27. Qc2 {[%emt 0:00:01]} Qb4 {[%emt 0:00:30]} 28. Qe4 {[%emt 0:00:53]} Qb2+ {[%emt 0:00:27]} 29. Qc2 {[%emt 0:00:01]} Qb4 {[%emt 0:00:14]} 30. Qe4 {[%emt 0:00:01]} Qb2+ {[%emt 0:00:09]} 31. Qc2 {[%emt 0:00:01]} 1/2-1/2

[Event "49th Rilton Cup 2019-20"]
[Site "Stockholm"]
[Date "2019.12.29"]
[Round "3.21"]
[White "Pantzar, Milton"]
[Black "Vitenberg, Noam Aviv"]
[Result "1-0"]
[ECO "A40"]
[WhiteElo "2410"]
[BlackElo "2230"]
[Annotator "NA"]
[PlyCount "71"]
[EventDate "2019.12.27"]
[EventType "swiss"]
[EventCountry "SWE"]
[SourceTitle "playchess.com"]
[Source "ChessBase"]
[SourceQuality "1"]
[TimeControl "40/5400+30:1800+30"]

1. d4 {[%emt 0:00:00]} g6 {[%emt 0:00:00]} 2. c4 {[%emt 0:00:35]} Bg7 {[%emt 0:00:00]} 3. e4 {[%emt 0:00:54]} Nc6 {[%emt 0:00:18]} 4. Be3 {[%emt 0:08:36]} e5 {[%emt 0:01:28]} 5. Ne2 {[%emt 0:05:44]} exd4 {[%emt 0:01:27]} 6. Nxd4 {[%emt 0:00:05]} Qf6 {[%emt 0:00:27]} 7. Nxc6 {[%emt 0:01:35]} dxc6 {[%emt 0:00:26]} 8. Nc3 {[%emt 0:00:28]} Qe7 {[%emt 0:00:35]} 9. Qc2 {[%emt 0:08:36]} Nf6 {[%emt 0:02:06]} 10. f3 {[%emt 0:02:35]} O-O {[%emt 0:03:01]} 11. Be2 {[%emt 0:02:55]} Nh5 {[%emt 0:08:17]} 12. g4 {[%emt 0:03:03]} Nf6 {[%emt 0:09:05]} 13. O-O-O {[%emt 0:05:15]} Be6 {[%emt 0:03:08]} 14. e5 {[%emt 0:09:17]} Nd7 {[%emt 0:19:25]} 15. f4 {[%emt 0:00:09]} Nb6 {[%emt 0:13:29]} 16. Ne4 {[%emt 0:12:39]} Rfe8 {[%emt 0:02:34]} 17. h4 {[%emt 0:12:11]} f6 {[%emt 0:10:49]} 18. h5 {[%emt 0:04:23]} Bf7 {[%emt 0:03:16]} 19. hxg6 {[%emt 0:05:14]} Bxg6 {[%emt 0:02:33]} 20. Bd3 {[%emt 0:00:53]} Nd7 {[%emt 0:07:39]} 21. e6 {[%emt 0:03:47]} Bxe4 {[%emt 0:01:48]} 22. Bxe4 {[%emt 0:07:00]} Qxe6 {[%emt 0:00:28]} 23. Bxh7+ {[%emt 0:00:04]} Kf8 {[%emt 0:00:15]} 24. Bf2 {[%emt 0:01:55]} Qxg4 {[%emt 0:02:25]} 25. Rh4 {[%emt 0:00:56]} Qf3 {[%emt 0:04:22]} 26. Rxd7 {[%emt 0:00:20]} Re2 {[%emt 0:00:10]} 27. Bc5+ {[%emt 0:00:49]} Ke8 {[%emt 0:00:23]} 28. Qd1 {[%emt 0:01:00]} Qg2 {[%emt 0:01:36]} 29. Bg6+ {[%emt 0:01:07]} Qxg6 {[%emt 0:00:51]} 30. Qxe2+ {[%emt 0:00:05]} Kxd7 {[%emt 0:00:40]} 31. Qe7+ {[%emt 0:00:04]} Kc8 {[%emt 0:00:08]} 32. Qe6+ {[%emt 0:00:05]} Kd8 {[%emt 0:00:24]} 33. Be7+ {[%emt 0:00:05]} Ke8 {[%emt 0:00:19]} 34. Bd6+ {[%emt 0:00:06]} Kd8 {[%emt 0:00:12]} 35. Qe7+ {[%emt 0:00:03]} Kc8 {[%emt 0:00:11]} 36. Qxc7# {[%emt 0:00:05]} 1-0

[Event "49th Rilton Cup 2019-20"]
[Site "Stockholm"]
[Date "2019.12.29"]
[Round "3.22"]
[White "Valsecchi, Alessio"]
[Black "Wartiovaara, Oliver"]
[Result "1-0"]
[ECO "A15"]
[WhiteElo "2503"]
[BlackElo "2185"]
[Annotator "ChessBase"]
[PlyCount "53"]
[EventDate "2019.12.27"]
[EventType "swiss"]
[EventCountry "SWE"]
[SourceTitle "playchess.com"]
[Source "ChessBase"]
[SourceQuality "1"]
[TimeControl "40/5400+30:1800+30"]

1. c4 {[%emt 0:00:00]} Nf6 {[%emt 0:00:13]} 2. Nf3 {[%emt 0:01:07]} g6 {[%emt 0:00:08]} 3. Nc3 {[%emt 0:00:27]} Bg7 {[%emt 0:00:06]} 4. e4 {[%emt 0:00:14]} e5 {[%emt 0:00:04]} 5. Be2 {[%emt 0:08:06]} O-O {[%emt 0:00:56]} 6. O-O {[%emt 0:03:52]} Nc6 {[%emt 0:02:47]} 7. d3 {[%emt 0:01:38]} d6 {[%emt 0:00:31]} 8. Rb1 {[%emt 0:00:23]} Ne8 {[%emt 0:18:36]} 9. b4 {[%emt 0:01:45]} f5 {[%emt 0:01:50]} 10. Nd5 {[%emt 0:08:47]} Nf6 {[%emt 0:06:38]} 11. b5 {[%emt 0:01:58]} Nd4 {[%emt 0:17:39]} 12. Nxd4 {[%emt 0:02:13]} Nxd5 {[%emt 0:00:41]} 13. cxd5 {[%emt 0:14:55]} exd4 {[%emt 0:00:13]} 14. a4 {[%emt 0:00:47]} Qe7 {[%emt 0:11:20]} 15. Qc2 {[%emt 0:01:14]} f4 {[%emt 0:02:07]} 16. f3 {[%emt 0:01:39]} Be5 {[%emt 0:02:30]} 17. Rb4 {[%emt 0:00:56]} a5 {[%emt 0:03:08]} 18. Rc4 {[%emt 0:00:10]} Rf7 {[%emt 0:06:56]} 19. Bb2 {[%emt 0:06:45]} b6 {[%emt 0:03:00]} 20. Bxd4 {[%emt 0:00:59]} Bxd4+ {[%emt 0:00:13]} 21. Rxd4 {[%emt 0:00:08]} Ra7 {[%emt 0:00:50]} 22. Rc4 {[%emt 0:00:12]} g5 {[%emt 0:01:38]} 23. d4 {[%emt 0:05:40]} h5 {[%emt 0:01:10]} 24. e5 {[%emt 0:04:08]} Bf5 {[%emt 0:05:23]} 25. Bd3 {[%emt 0:01:40]} Bxd3 {[%emt 0:00:15]} 26. Qxd3 {[%emt 0:00:08]} dxe5 {[%emt 0:00:23]} 27. Re1 {[%emt 0:00:34]} 1-0

[Event "49th Rilton Cup 2019-20"]
[Site "Stockholm"]
[Date "2019.12.29"]
[Round "3.23"]
[White "Ivanov, Sergey"]
[Black "Ajay Krishna, S."]
[Result "0-1"]
[ECO "D31"]
[WhiteElo "2478"]
[BlackElo "2302"]
[Annotator "ChessBase"]
[PlyCount "108"]
[EventDate "2019.12.27"]
[EventType "swiss"]
[EventCountry "SWE"]
[SourceTitle "playchess.com"]
[Source "ChessBase"]
[SourceQuality "1"]
[TimeControl "40/5400+30:1800+30"]

1. d4 {[%emt 0:00:00]} d5 {[%emt 0:00:00]} 2. c4 {[%emt 0:00:30]} e6 {[%emt 0:00:30]} 3. Nc3 {[%emt 0:00:30]} Bb4 {[%emt 0:00:30]} 4. a3 {[%emt 0:00:37]} Bxc3+ {[%emt 0:00:30]} 5. bxc3 {[%emt 0:00:30]} c6 {[%emt 0:02:08]} 6. e3 {[%emt 0:01:55]} Nf6 {[%emt 0:00:30]} 7. cxd5 {[%emt 0:01:03]} cxd5 {[%emt 0:00:30]} 8. c4 {[%emt 0:01:15]} O-O {[%emt 0:02:07]} 9. Nf3 {[%emt 0:02:20]} b6 {[%emt 0:01:45]} 10. Bb2 {[%emt 0:05:27]} Ba6 {[%emt 0:03:37]} 11. Rc1 {[%emt 0:01:23]} Nbd7 {[%emt 0:10:24]} 12. cxd5 {[%emt 0:17:06]} Bxf1 {[%emt 0:00:30]} 13. Kxf1 {[%emt 0:00:30]} exd5 {[%emt 0:00:56]} 14. Qd3 {[%emt 0:02:02]} Ne4 {[%emt 0:01:18]} 15. a4 {[%emt 0:01:35]} Qf6 {[%emt 0:08:22]} 16. Qb5 {[%emt 0:03:29]} Qf5 {[%emt 0:00:30]} 17. Ke2 {[%emt 0:03:25]} Ndf6 {[%emt 0:03:42]} 18. h3 {[%emt 0:02:07]} h5 {[%emt 0:03:50]} 19. Rc7 {[%emt 0:04:56]} Rfe8 {[%emt 0:04:28]} 20. Qd3 {[%emt 0:14:46]} a6 {[%emt 0:08:44]} 21. Rhc1 {[%emt 0:07:01]} g5 {[%emt 0:10:31]} 22. R1c6 {[%emt 0:00:56]} g4 {[%emt 0:02:00]} 23. Rxb6 {[%emt 0:00:42]} gxf3+ {[%emt 0:01:30]} 24. gxf3 {[%emt 0:00:30]} Qxh3 {[%emt 0:00:37]} 25. fxe4 {[%emt 0:00:33]} Nxe4 {[%emt 0:00:50]} 26. Rbb7 {[%emt 0:02:43]} Qg4+ {[%emt 0:01:37]} 27. Ke1 {[%emt 0:03:47]} Nd6 {[%emt 0:04:17]} 28. Rb6 {[%emt 0:02:03]} Rab8 {[%emt 0:04:11]} 29. a5 {[%emt 0:02:56]} h4 {[%emt 0:08:47]} 30. Qe2 {[%emt 0:00:47]} Qxe2+ {[%emt 0:00:53]} 31. Kxe2 {[%emt 0:00:30]} Nc4 {[%emt 0:00:30]} 32. Rxb8 {[%emt 0:04:19]} Rxb8 {[%emt 0:00:30]} 33. Bc3 {[%emt 0:00:30]} h3 {[%emt 0:01:14]} 34. Kf3 {[%emt 0:00:51]} Rb3 {[%emt 0:00:30]} 35. Rc6 {[%emt 0:05:07]} Rxc3 {[%emt 0:00:30]} 36. Rxa6 {[%emt 0:00:30]} Ra3 {[%emt 0:02:09]} 37. Ra8+ {[%emt 0:00:30]} Kg7 {[%emt 0:00:30]} 38. a6 {[%emt 0:00:30]} Nd2+ {[%emt 0:00:49]} 39. Kg3 {[%emt 0:00:30]} Ne4+ {[%emt 0:00:45]} 40. Kxh3 {[%emt 0:00:30]} Nxf2+ {[%emt 0:00:30]} 41. Kg3 {[%emt 0:31:07]} Nd1 {[%emt 0:30:33]} 42. Kf4 {[%emt 0:01:20]} Nxe3 {[%emt 0:00:49]} 43. a7 {[%emt 0:01:33]} Nc4 {[%emt 0:00:30]} 44. Kf5 {[%emt 0:02:36]} Ra5 {[%emt 0:00:30]} 45. Kg5 {[%emt 0:01:33]} Na3 {[%emt 0:01:06]} 46. Rd8 {[%emt 0:01:47]} Rxa7 {[%emt 0:00:30]} 47. Rxd5 {[%emt 0:00:30]} Nc2 {[%emt 0:01:49]} 48. Rd8 {[%emt 0:00:30]} Ra4 {[%emt 0:02:21]} 49. d5 {[%emt 0:00:30]} Ne3 {[%emt 0:00:32]} 50. d6 {[%emt 0:00:30]} Rg4+ {[%emt 0:02:19]} 51. Kh5 {[%emt 0:00:30]} Kf6 {[%emt 0:00:59]} 52. Re8 {[%emt 0:00:00]} Rg5+ {[%emt 0:00:00]} 53. Kh4 {[%emt 0:00:00]} Nf5+ {[%emt 0:00:00]} 54. Kh3 {[%emt 0:00:00]} Nxd6 {[%emt 0:00:00]} 0-1

[Event "49th Rilton Cup 2019-20"]
[Site "Stockholm"]
[Date "2019.12.29"]
[Round "3.24"]
[White "Dragicevic, Drazen"]
[Black "Alexakis, Dimitrios"]
[Result "1-0"]
[ECO "A05"]
[WhiteElo "2294"]
[BlackElo "2093"]
[Annotator "NA"]
[PlyCount "101"]
[EventDate "2019.12.27"]
[EventType "swiss"]
[EventCountry "SWE"]
[SourceTitle "playchess.com"]
[Source "ChessBase"]
[SourceQuality "1"]
[TimeControl "40/5400+30:1800+30"]

1. Nf3 Nf6 {[%emt 0:06:22]} 2. g3 {[%emt 0:00:00]} e6 {[%emt 0:00:12]} 3. Bg2 {[%emt 0:00:07]} d5 {[%emt 0:00:45]} 4. O-O {[%emt 0:01:11]} b5 {[%emt 0:06:03]} 5. b3 {[%emt 0:05:10]} Bb7 {[%emt 0:00:48]} 6. c4 {[%emt 0:08:02]} a6 {[%emt 0:14:58]} 7. Na3 {[%emt 0:18:46]} bxc4 {[%emt 0:09:42]} 8. bxc4 {[%emt 0:01:06]} Nbd7 {[%emt 0:00:15]} 9. d4 {[%emt 0:15:28]} Be7 {[%emt 0:03:23]} 10. Rb1 {[%emt 0:02:58]} Rb8 {[%emt 0:01:11]} 11. c5 {[%emt 0:05:36]} Bc6 {[%emt 0:02:13]} 12. Rxb8 {[%emt 0:01:10]} Qxb8 {[%emt 0:00:19]} 13. Bf4 {[%emt 0:03:39]} O-O {[%emt 0:02:43]} 14. Qd2 {[%emt 0:03:06]} Qa7 {[%emt 0:09:33]} 15. Qa5 {[%emt 0:03:28]} Rc8 {[%emt 0:01:25]} 16. Rb1 {[%emt 0:01:27]} Ne4 {[%emt 0:06:21]} 17. h4 {[%emt 0:05:48]} f6 {[%emt 0:24:28]} 18. Nc2 {[%emt 0:08:03]} Nb8 19. Bh3 {[%emt 0:01:34]} Kf7 {[%emt 0:06:14]} 20. Nb4 {[%emt 0:01:16]} Bd7 {[%emt 0:02:27]} 21. Rc1 {[%emt 0:05:51]} Qb7 {[%emt 0:00:35]} 22. Ne1 {[%emt 0:01:55]} g5 {[%emt 0:00:27]} 23. hxg5 {[%emt 0:00:19]} fxg5 {[%emt 0:00:31]} 24. Be3 {[%emt 0:00:48]} Nc6 {[%emt 0:00:27]} 25. Nxc6 {[%emt 0:00:10]} Bxc6 {[%emt 0:00:03]} 26. Nd3 {[%emt 0:00:46]} Bf6 {[%emt 0:00:00]} 27. Bg4 {[%emt 0:00:59]} Kg6 {[%emt 0:00:42]} 28. Qe1 {[%emt 0:02:25]} h5 {[%emt 0:00:16]} 29. Rb1 {[%emt 0:01:17]} Qa8 {[%emt 0:00:31]} 30. Bh3 {[%emt 0:00:50]} h4 {[%emt 0:00:39]} 31. gxh4 {[%emt 0:00:53]} Rh8 {[%emt 0:00:03]} 32. f3 {[%emt 0:00:39]} Rxh4 {[%emt 0:00:04]} 33. Bg2 {[%emt 0:00:21]} Qh8 {[%emt 0:01:22]} 34. fxe4 {[%emt 0:00:35]} dxe4 {[%emt 0:00:04]} 35. Ne5+ {[%emt 0:00:47]} Bxe5 {[%emt 0:00:03]} 36. dxe5 {[%emt 0:00:04]} Qxe5 {[%emt 0:00:11]} 37. Qf2 {[%emt 0:00:49]} Rh7 {[%emt 0:02:36]} 38. Rb8 {[%emt 0:00:25]} Rd7 {[%emt 0:00:26]} 39. Bh3 {[%emt 0:00:52]} Rd1+ {[%emt 0:00:36]} 40. Kg2 {[%emt 0:00:37]} Qf4 {[%emt 0:00:29]} 41. Bxf4 {[%emt 0:03:14]} e3+ {[%emt 0:00:00]} 42. Qf3 {[%emt 0:00:10]} Bxf3+ {[%emt 0:00:14]} 43. Kxf3 {[%emt 0:00:07]} gxf4 {[%emt 0:00:09]} 44. Kxf4 {[%emt 0:00:20]} Rd2 {[%emt 0:00:08]} 45. Kxe3 {[%emt 0:00:30]} Rxa2 {[%emt 0:00:03]} 46. Bg2 {[%emt 0:02:00]} Ra5 {[%emt 0:02:11]} 47. c6 {[%emt 0:00:28]} Kf5 {[%emt 0:00:13]} 48. Rb7 {[%emt 0:00:33]} Ra3+ {[%emt 0:00:16]} 49. Kf2 {[%emt 0:00:23]} e5 {[%emt 0:00:09]} 50. Rxc7 {[%emt 0:00:28]} e4 {[%emt 0:00:01]} 51. Re7 {[%emt 0:00:34]} 1-0